Workbook

Sheet ПЕЧАТЬ
A1: 2023-05-15T16:15:41
A8: ="Договор "&$D$10&" "&#REF! -> 
E9: Приложение № 3, утверждено приказом ГБУЗРК "РДКБ" от ___________2023 №___
A10: Договор №
A11: на оказание платных медицинских услуг
A12: Дата:__________
F13: время:____________
A14: Государственное бюджетное учреждение здравоохранения Республики Крым «Республиканская детская клиническая больница» (свидетельство о государственной регистрации юридического лица в Единый государственный реестр юридических лиц 91№000016825 от 30.12.2014 года ИФНС по г. Симферополю), именуемое в дальнейшем «Исполнитель», осуществляющее деятельность из числа указанных в части 1 статьи 12 Федерального закона «О лицензировании отдельных видов деятельности» регистрационный номер лицензии № Л041-1177-91/00355224 от 24 июля 2020 г., выданной Министерством здравоохранения Республики Крым (295005, Республика Крым, г. Симферополь, проспект Кирова 13, тел. 7-3652-544-684) (срок действия - бессрочно), в лице Главного врача Олейника Анатолия Васильевича, действующего на основании Устава, с одной стороны, и гражданин (ка)
A15: (Законный представитель), именуемый в дальнейшем Заказчик, и действующий в интересах несовершеннолетнего ребенка (пациента)
A17: (пациент), , именуемого в дальнейшем "Потребитель" и (или) "Пациент"
A18: 1. ПРЕДМЕТ ДОГОВОРА
A19: 1.1. Настоящий договор определяет условия оказания платных медицинских услуг. «Заказчик» поручает, а «Исполнитель» обязуется оказать «Пациенту» (Потребителю) платную медицинскую услугу (или услуги) согласно сметы на оказание платной медицинской услуги
A20: №№ п/п | B20: Код медицинской услуги | C20: кассовый код | D20: Наименование медуслуги | E20: количество услуг | F20: Цена | G20: Сумма
A21: 1 | B21: =IFERROR(VLOOKUP(D21,ПРАЙС,2,0)," -------- ") -> -------- | C21: =IFERROR(VLOOKUP(D21,ПРАЙС,4,0),"") ->  | E21: 1 | F21: =IFERROR(VLOOKUP(D21,ПРАЙС,3,0)," -------- ") -> -------- | G21: =IFERROR(F21*E21," -------- ") -> --------
A22: 2 | B22: -------- | F22: -------- | G22: --------
A23: 3 | B23: -------- | F23: -------- | G23: --------
A24: 4 | B24: -------- | F24: -------- | G24: --------
A25: 5 | B25: -------- | F25: -------- | G25: --------
A26: 6 | B26: -------- | F26: -------- | G26: --------
A27: 7 | B27: -------- | F27: -------- | G27: --------
A28: 8 | B28: -------- | F28: -------- | G28: --------
A29: 9 | B29: =IFERROR(VLOOKUP(D29,ПРАЙС,2,0)," -------- ") -> -------- | C29: =IFERROR(VLOOKUP(D29,ПРАЙС,4,0),"") ->  | F29: =IFERROR(VLOOKUP(D29,ПРАЙС,3,0)," -------- ") -> -------- | G29: =IFERROR(F29*E29," -------- ") -> --------
A30: 10 | B30: =IFERROR(VLOOKUP(D30,ПРАЙС,2,0)," -------- ") -> -------- | C30: =IFERROR(VLOOKUP(D30,ПРАЙС,4,0),"") ->  | F30: =IFERROR(VLOOKUP(D30,ПРАЙС,3,0)," -------- ") -> -------- | G30: =IFERROR(F30*E30," -------- ") -> --------
A31: 11 | B31: =IFERROR(VLOOKUP(D31,ПРАЙС,2,0)," -------- ") -> -------- | C31: =IFERROR(VLOOKUP(D31,ПРАЙС,4,0),"") ->  | F31: =IFERROR(VLOOKUP(D31,ПРАЙС,3,0)," -------- ") -> -------- | G31: =IFERROR(F31*E31," -------- ") -> --------
A32: 12 | B32: =IFERROR(VLOOKUP(D32,ПРАЙС,2,0)," -------- ") -> -------- | C32: =IFERROR(VLOOKUP(D32,ПРАЙС,4,0),"") ->  | F32: =IFERROR(VLOOKUP(D32,ПРАЙС,3,0)," -------- ") -> -------- | G32: =IFERROR(F32*E32," -------- ") -> --------
A33: 13 | B33: =IFERROR(VLOOKUP(D33,ПРАЙС,2,0)," -------- ") -> -------- | C33: =IFERROR(VLOOKUP(D33,ПРАЙС,4,0),"") ->  | F33: =IFERROR(VLOOKUP(D33,ПРАЙС,3,0)," -------- ") -> -------- | G33: =IFERROR(F33*E33," -------- ") -> --------
A34: 14
A35: 15
A36: 16
A37: Итого | F37: =SUM(F21:F33) -> 0 | G37: =SUM(G21:G36) -> 0
A39: и утвержденного Прейскуранта. Заказчик, Потребитель (Пациент) информированы о том, что платная медицинская услуга, оказываемая согласно данному Договору, может быть получена Пациентом бесплатно, в соответствии с Постановление Правительства Российской Федерации от 29.12.2022 № 2497 "О Программе государственных гарантий бесплатного оказания гражданам медицинской помощи на 2023 год и на плановый период 2024 и 2025 годов", в сроки и в порядке установленным Постановлением Совета министров Республики Крым от 28 декабря 2022 года № 1271 «Об утверждении Территориальной программы государственных гарантий бесплатного оказания гражданам медицинской помощи в Республике Крым на 2023 год и на плановый период 2024 и 2025 годов». Сроки оказания медуслуг определяют исходя из конкретной клинической ситуации пациента. Сроки согласуются с пациентом в медицинской документации, которая представляет собой неотъемлемую часть договора. Предельные сроки ожидания медицинской помощи: Медицинская помощь оказывается гражданам в трех формах – плановая, неотложная и экстренная. Экстренная форма предусматривает оказание медицинской помощи при внезапных острых заболеваниях, состояниях, обострении хронических заболеваний, представляющих угрозу жизни пациента. При этом медицинская помощь в экстренной форме оказывается медицинской организацией и медицинским работником гражданину безотлагательно и бесплатно. Отказ в ее оказании не допускается. Неотложная форма предусматривает оказание медицинской помощи при внезапных острых заболеваниях, состояниях, обострении хронических заболеваний без явных признаков угрозы жизни пациента. Плановая форма предусматривает оказание медицинской помощи при проведении профилактических мероприятий, при заболеваниях и состояниях, не сопровождающихся угрозой жизни пациента, не требующих экстренной и неотложной медицинской помощи, и отсрочка оказания которой на определенное время не повлечет за собой ухудшение состояния пациента, угрозу его жизни и здоровью. В зависимости от этих форм Правительством Российской Федерации устанавливаются предельные сроки ожидания медицинской помощи. Так, сроки ожидания оказания первичной медико-санитарной помощи в неотложной форме не должны превышать 2 часов с момента обращения пациента в медицинскую организацию. Сроки ожидания оказания медицинской помощи в плановой форме для: - приема врачами-терапевтами участковыми, врачами общей практики (семейными врачами), врачами-педиатрами участковыми не должны превышать 24 часов с момента обращения пациента в медицинскую организацию; - проведения консультаций врачей-специалистов не должны превышать 14 календарных дней со дня обращения пациента в медицинскую организацию;
A40: - проведения диагностических инструментальных (рентгенографические исследования, включая маммографию, функциональная диагностика, ультразвуковые исследования) и лабораторных исследований при оказании первичной медико-санитарной помощи не должны превышать 14 календарных дней со дня назначения; - проведения компьютерной томографии (включая однофотонную эмиссионную компьютерную томографию), магнитно-резонансной томографии и ангиографии при оказании первичной медико-санитарной помощи не должны превышать 30 календарных дней, а для пациентов с онкологическими заболеваниями – 14 календарных дней со дня назначения; - специализированной (за исключением высокотехнологичной) медицинской помощи не должны превышать 30 календарных дней со дня выдачи лечащим врачом направления на госпитализацию, а для пациентов с онкологическими заболеваниями - 14 календарных дней с момента установления диагноза заболевания. Заключение договора означает полное согласие Пациента на оказание медицинских услуг согласно условий данного Договора.
A41: 1.2. Срок оказания медицинской услуги: | D41: =$A$1 -> 2023-05-15T16:15:41
A42: 1.3. Режим работы Исполнителя: 08:00 – 15:30 по м.в.
A43: 1.4. В случае если при предоставлении платных медицинских услуг потребуется предоставление дополнительных медицинских услуг по экстренным показаниям для устранения угрозы жизни Потребителя при внезапных острых заболеваниях, состояниях, обострениях хронических заболеваний, такие медицинские услуги оказываются без взимания платы в соответствии с Федеральным законом от 21 ноября 2011 года № 323-ФЗ «Об основах охраны здоровья граждан в Российской Федерации». Расходы, связанные с оказанием Потребителю медицинской помощи в экстренной форме, возмещаются Исполнителю в порядке и размерах, которые установлены органом исполнительной власти субъекта Российской Федерации в рамках территориальных программ в соответствии с пунктом 10 части 2 статьи 81 Федерального закона от 21 ноября 2011 года № 323-ФЗ «Об основах охраны здоровья граждан в Российской Федерации».
A44: 1.5.Заказчик, Потребитель подтверждает, что согласен на осуществление отдельных консультаций или медицинских вмешательств, в том числе в объеме, превышающем объем выполняемого стандарта медицинской помощи. При возникновении необходимости выполнения дополнительных услуг, не предусмотренных договором, они выполняются с согласия «Заказчика» с оплатой по утвержденному прейскуранту, посредством заключения дополнительного соглашения к данному договору или заключением нового договора.
A45: 2. СТОИМОСТЬ И ПОРЯДОК ОПЛАТЫ.
A46: 2.1. Цена услуги, при отсутствии необходимости выполнения других работ, не предусмотренных в договоре, устанавливается на уровне
A47: =G37 -> 0
A48: 2.2. «Заказчик» обязан в течение 3-х банковских дней с момента заключения договора произвести оплату медицинской услуги. 2.3. Оплата производится до оказания медицинской услуги в кассу «Исполнителя» или перечислением на расчетный счет, на основании действующего у Исполнителя прейскуранта в соответствии с фактическим объемом оказанных услуг и сметы оказанной услуги, которая является неотъемлемой частью Договора. Оплата может быть произведена самим «Заказчиком», его страховой компанией либо третьим заинтересованным физическим или юридическим лицом на основании счета, выписанного «Исполнителем». Оплата производится в полном объеме. Потребитель ознакомлен с прейскурантом до подписания настоящего договора. 2.4. В случае возникновения необходимости приобретения «Заказчиком» для Потребителя (Пациента) дополнительных медицинских расходных материалов для оказания медицинской услуги, указанной в п. 1.1. настоящего договора, и их отсутствия у «Исполнителя», «Заказчик» должен приобрести следующие расходные материалы _______________________________________________________________________________
A49: 3. ПРАВА И ОБЯЗАННОСТИ СТОРОН.
A50: 3.1. «Исполнитель» обязан: - оказать "Потребителю" («Пациенту») квалифицированную, качественную медицинскую помощь в установленный договором срок; организовывать и осуществлять медицинскую деятельность в соответствии с законодательством Российской Федерации, в том числе положениями об организации оказания медицинской помощи и порядками оказания медицинской помощи, организации медицинской реабилитации и санаторно-курортного лечения, проведения медицинских экспертиз, диспансеризации, диспансерного наблюдения, медицинских осмотров и медицинских освидетельствований, на основе клинических рекомендаций, а также с учетом стандартов медицинской помощи, в установленный договором срок; По требованию Заказчика и (или) Потребителя предоставить ему в доступной форме информацию о платных медицинских услугах, содержащую следующие сведения: — порядки оказания медицинской помощи и стандарты медицинской помощи, применяемые при предоставлении платных медицинских услуг; — информацию о конкретном медицинском работнике, предоставляющем соответствующую платную медицинскую услугу (его профессиональном образовании и квалификации); — информацию о методах оказания медицинской помощи, связанных с ними рисках, возможных видах медицинского вмешательства, их последствиях и ожидаемых результатах оказания медицинской помощи; — другие сведения, относящиеся к предмету настоящего договора.. - предоставить Заказчику и (или) Потребителю («Пациенту») бесплатную, доступную, полную, достоверную информацию о заболевании, предоставляемой услуге и возможных осложнениях. В случае если при предоставлении платных медицинских услуг требуется предоставление на возмездной основе дополнительных медицинских услуг, не предусмотренных договором, Исполнитель обязан предупредить об этом Потребителя. Без согласия Потребителя Исполнитель не вправе предоставлять дополнительные медицинские услуги на возмездной основе. - Уведомить Потребителя о том, что граждане, находящиеся на лечении, в соответствии с Федеральным законом от 21.11.2011 № 323-ФЗ «Об основах охраны здоровья граждан в Российской Федерации» обязаны соблюдать режим лечения, в том числе определенный на период их временной нетрудоспособности, и правила поведения пациента в медицинских организациях. 3.2. «Исполнитель» имеет право: - в случае возникновения неотложных состояний самостоятельно определять объем исследований, манипуляций, оперативных вмешательств, необходимых для установления диагноза, обследования и оказания медицинской помощи, в т.ч. и не предусмотренной договором. 3.3. Заказчик и (или) "Потребитель" («Пациент») обязан: - своевременно оплатить стоимость услуг; - сообщить врачу до начала медицинского вмешательства полные сведения о состоянии своего здоровья, перенесенных и наследственных заболеваниях, противопоказаниях, профессиональных вредностях, вредных привычках (курение, употребление алкоголя, наркотиков, токсических веществ), переносимости лекарственных средств, аллергических проявлениях, эпидемиологических данных; -соблюдать назначения лечащего врача и медицинского персонала; -соблюдать установленные предписания и правила при пребывании в лечебном учреждении; -не применять не назначенные препараты и иные методы диагностики и лечения; -консультироваться со специалистами других медицинских учреждений только по согласованию с исполнителями медицинских услуг и сообщать об их результатах. 3.4. "Потребитель" («Пациент»), его законный представитель, имеет право: -на предоставление информации о медицинской услуге; -знакомиться со своей медицинской документацией, документами, подтверждающими специальную правоспособность учреждения и его врачей; -получить заключение с указанием результатов проведенных исследований, лечебных мероприятий и необходимых рекомендаций; -на устранение вреда, в случае неполного оказания медицинской услуги, в случае если данный вред был причинен по вине Исполнителя, в судебном порядке; -отказаться от получения медицинской услуги до ее оказания, уведомив Исполнителя об этом не менее за 3 (три) дня и получить обратно оплаченную сумму с возмещением «Исполнителю» затрат, связанных с подготовкой оказания услуги.
A52: 4. ИНФОРМАЦИЯ О ПРЕДОСТАВЛЯЕМОЙ МЕДИЦИНСКОЙ УСЛУГЕ.
A53: 4.1. Информацию об оказываемой медицинской услуге "Заказчик", "Потребитель" («Пациент») получает в устной форме от специалиста-
A55: Краснова Виктория Валерьевна | D55: Каретникова Марина Сергеевна | I55: Муединова Эльвира Разимовна
A56: Дмитрюк Светлана Викторовна | D56: Каретникова Марина Сергеевна
A57: Янина Татьяна Юрьевна
A58: 4 2. Перед оказанием медицинской услуги врач устанавливает отсутствие противопоказаний. При их наличии медицинская услуга не оказывается.
A59: 4.3. Медицинскую услугу выполняет | C59: =IFERROR(VLOOKUP(A54,Сертификаты,3,FALSE)," -------- ") -> --------
A60: квалификационной категории, имеющий сертификат специалиста
A61: =IFERROR(VLOOKUP(A54,Сертификаты,4,FALSE)," -------- ") -> --------
A62: 4.4. | B62: Порядок и условия выдачи потребителю (законному представителю потребителя) после исполнения договора исполнителем медицинских документов: результаты медицинской услуги (копии медицинских документов, выписки из медицинских документов), отражающие состояние его здоровья после получения платных медицинских услуг, включая сведения о результатах обследования, диагнозе, методах лечения, об используемых при предоставлении платных медицинских услуг лекарственных препаратах и медицинских изделиях, без взимания дополнительной платы, осуществляется по запросу "Заказчика" и (или) "Потребителя" ("Пациента")не ранее оказания медицинской услуги и не позднее 10 (десяти) рабочих дней с момента её оказания, в зависимости от вида и сложности оказанной услуги. В случае нахождения пациента (потребителя) на стационарном лечении - в течении 1 (одного) рабочего дня.
A63: 4.5. С учетом самой технологии выполнения медицинской услуги "Заказчик", "Потребитель" («Пациент») должен осознавать вероятность (но не обязательность) вредных (побочных) эффектов медицинского вмешательства и осложнений, что может причинить вред здоровью, о чем "Заказчик", "Потребитель", «Пациент» в устной форме информируется специалистом, оказывающим медицинские услуги до момента подписания договора. 4.6. В связи с тем, что вышеперечисленные побочные эффекты и осложнения возникают вследствие биологических особенностей организма и используемая технология оказания медицинской помощи не может полностью исключить их вероятность, «Исполнитель» не несет ответственность за наступление осложнений, если медицинская услуга оказана с соблюдением всех необходимых требований. В случае если осложнения потребовали оказания срочной медицинской помощи, согласно Тарифному соглашению по Республике Крым и Федеральному Закону «О обязательном медицинском страховании», «Исполнитель» устраняет подобные вредные последствия без дополнительной оплаты. 4.7. В связи с оказанием медицинской услуги в предусмотренных нормативными актами случаях, при госпитализации, "Потребителю" («Пациенту»), законному представителю, по его требованию выдается листок нетрудоспособности. 4.8. "Потребитель" («Пациент»), его законный представитель ("Заказчик") подтверждает, что ознакомлен с «Правилами оказания медицинских услуг» в «ГБУЗРК «РДКБ»», с дополнительной информацией, касающейся особенностей данной медицинской услуги и условий ее предоставления, до начала оказания медицинской услуги. "Заказчик" и "Потребитель" ("Пациент") уведомлены о том, что граждане, находящиеся на лечении, в соотвествии с Федеральным законом "Об основах охраны здоровья граждан в Российской Федерации" обязаны соблюдать режим лечения, в том числе определенный на период их временной нетрудоспособности, и правила поведения пациента в медицинских организациях, а именно в ГБУЗРК "РДКБ".
A64: 5. ОТВЕТСТВЕННОСТЬ СТОРОН.
A65: 5.1.В случае неполного оказания медицинской услуги "Заказчик" и (или) "Потребитель" («Пациент») вправе потребовать безвозмездного устранения недостатков оказанной услуги, если услуга была оказана в ненадлежащем виде. Факт ненадлежащего оказания медицинской услуги должен быть зафиксирован. Исполнитель, в свою очередь, обязуется исполнить услугу в полном ее объеме и приложить все зависящие от него усилия для ее исполнения. 5.2. «Исполнитель» освобождается от ответственности за неисполнение или ненадлежащее исполнение своих обязанностей по договору, если докажет, что это произошло вследствие непреодолимой силы, нарушения "Заказчиком", "Потребителем" («Пациентом») своих обязанностей или по Другим основаниям, предусмотренным законодательством. 5.3. "Заказчик" и (или) "Потребитель" («Пациент») обязан возместить медицинскому учреждению фактически произведенные расходы по оказанию услуги, если «Исполнитель» не смог или был вынужден прекратить ее оказание по вине "Заказчика" и (или) "Потребителя" («Пациента»).
A66: 6. ПРОЧИЕ УСЛОВИЯ.
A67: 6.1. Договор составляется в трех экземплярах (по одному для Заказчика, Потребителя и Исполнителя). В случае если договор заключается между Потребителем и Исполнителем, он составляется в двух экземплярах. Договор вступает в силу с момента его подписания сторонами и действует до момента исполнения обязательств. 6.2. Споры и разногласия решаются путей переговоров и в судебном порядке. Договор может быть изменен по обоюдному согласию сторон посредством письменного заключения дополнительного соглашения. 6.3. Договор может быть расторгнут по соглашению сторон. 6.4. "Заказчик" вправе расторгнуть договор об оказании услуги и потребовать полного возмещения убытков, если выявленные недостатки оказанной услуги не устранены «Исполнителем». «Заказчик» вправе расторгнуть договор также в тех случаях, если им обнаружены существенные недостатки оказанной услуги или иные существенные отклонения от условий договора. 6.5. Договор может быть расторгнут и по другим основаниям, предусмотренным законодательством Российской Федерации. 6.6. Сторона, считая, что ее права по настоящему договору нарушены, может направить другой стороне претензию, которая рассматривается в течение 10 рабочих дней. В случае неполучения ответа или неудовлетворения ответом, пославшая претензию сторона может обратиться в суд. За неисполнение или ненадлежащее исполнение обязательств по договору стороны несут ответственность, предусмотренную законодательством Российской Федерации. Вред, причиненный жизни или здоровью пациента в результате оказания платных медицинских услуг ненадлежащего качества, подлежит возмещению Исполнителем в соответствии с законодательством Российской Федерации.
A68: 6.7. Настоящий Договор заключен посредством использования сети «Интернет» через официальный сайт Исполнителя на основании ознакомления потребителя и (или) заказчика с предложенным исполнителем описанием медицинской услуги (дистанционный способ заключения договора). 6.8. При заключении договора дистанционным способом потребитель самостоятельно знакомится на официальном сайте исполнителя в сети «Интернет» _____ со следующей информацией: – наименование (фирменное наименование) Исполнителя; – основной государственный регистрационный номер исполнителя; – идентификационный номер налогоплательщика (исполнителя); – информация об оказываемой услуге (выполняемой работе), предусмотренная статьей 10 Закона Российской Федерации от 07.02.1992 № 2300-1 «О защите прав потребителей»; – способы оплаты услуги (работы); – сведения о лицензии на осуществление медицинской деятельности (номер лицензии, сроки ее действия, а также информация об органе, выдавшем указанную лицензию); – адреса, в том числе адреса электронной почты, по которым принимаются обращения (жалобы) и требования потребителей и (или) заказчиков. 6.9. Указанная в п. 6.3. информация размещена на официальном сайте исполнителя в сети «Интернет» child-hosp.ru. Подписанием настоящего договора электронной подписью потребителя и (или) заказчика, потребитель и (или) заказчик подтверждает факт ознакомления с данной информацией. 6.10. Договор с потребителем и (или) заказчиком считается заключенным со дня оформления потребителем и (или) заказчиком соответствующего согласия (акцепта), в том числе путем совершения действий по выполнению условий договора, включая внесение частично или полностью оплаты по договору с учетом положений статей 16.1. и 37 Закона Российской Федерации от 07.02.1992 № 2300-1 «О защите прав потребителей». Со дня получения согласия (акцепта) и осуществления потребителем и (или) заказчиком частичной или полной оплаты по нему все условия договора остаются неизменными и не должны корректироваться исполнителем без согласия потребителя и (или) заказчика.
A69: 6.11. При заключении договора исполнитель представляет потребителю и (или) заказчику подтверждение заключения такого договора. Указанное подтверждение должно содержать номер договора или иной способ идентификации договора, который позволяет потребителю и (или) заказчику получить информацию о заключенном договоре и его условиях. 6.12. По требованию потребителя и (или) заказчика в целях заключения и (или) исполнения договора, заключенного дистанционным способом, может осуществляться в том числе с помощью ФГИС «Единая система идентификации и аутентификации в инфраструктуре, обеспечивающей информационно-технологическое взаимодействие информационных систем, используемых для предоставления государственных и муниципальных услуг в электронной форме» («Госуслуги»). 6.13. Согласие (акцепт) должно быть подписано электронной подписью потребителя и (или) заказчика (простой, усиленной неквалифицированной или усиленной квалифицированной) и усиленной квалифицированной электронной подписью лица исполнителя. 6.14. Потребитель и (или) заказчик обязаны оплатить оказанную исполнителем медицинскую услугу в порядке и сроки, которые установлены договором, заключенным с исполнителем в дистанционной форме, с учетом положений статей 16.1 и 37 Закона Российской Федерации от 07.02.1992 № 2300-1 «О защите прав потребителей». 6.15. При заключении договора дистанционным способом отказ потребителя и (или) заказчика от исполнения договора может быть совершен способом, используемым при его заключении. 6.16. Потребитель и (или) заказчик могут направить исполнителю в любой форме и любым, включая дистанционный, способом требования, в том числе при обнаружении недостатков выполненной работы (оказанной платной медицинской услуги), а исполнитель обязан принять эти требования, в том числе дистанционным способом. 6.17. Настоящий Договор вступает в силу с момента его заключения и действует до полного исполнения обязательств Сторонами. 6.18. В случае отказа Потребителя после заключения договора от получения медицинских услуг договор расторгается. Исполнитель информирует Потребителя о расторжении договора по инициативе Потребителя, при этом Потребитель оплачивает фактически понесенные Исполнителем расходы, связанные с исполнением обязательств по договору.
A70: 6.19. Оплату фактически оказанных Исполнителем Потребителю медицинских услуг, в случае досрочного расторжения настоящего Договора по основаниям, указанным в п. 6.13 Договора, Потребитель обязан произвести в течение 3 рабочих дней со дня расторжения Договора. 6.20. Во всем, что не предусмотрено настоящим Договором, Стороны руководствуются действующим законодательством РФ. 6.21. Исполнитель обеспечивает хранение настоящего договора в порядке, определенном законодательством Российской Федерации об архивном деле в Российской Федерации.
A71: Исполнитель: | D71: Пациент:
A72: 295034, Республика Крым, г. Симферополь, ул. Титова 71, Министерство финанов Республики Крым (ГБУЗРК "РДКБ", л/с 20756Щ92660), Единый казначейский счет 40102810645370000035 ОГРН 1149102171096 ИНН 9102064095 / КПП 910201001 ОКПО 00807263, Казначейский счет, открытый в УФК по Республике Крым 03224643350000007500 БИК 013510002, Банк получателя: ОТДЕЛЕНИЕ РЕСПУБЛИКА КРЫМ БАНКА РОССИИ // УФК по Республике Крым г.Симферополь, КБК 00000000000000000130 Email: rdkb@mail.ru | D72: ФИО:
D73: =$A$15 -> (Законный представитель), именуемый в дальнейшем Заказчик, и действующий в интересах несовершеннолетнего ребенка (пациента)
D75: Адрес проживания:
A80: _______________________ Главный врач Олейник А.В.
A82: ="Приложение № 1 к Договору № "&D10&" об оказании платных медицинских услуг физическим лицам от "&TEXT($A$1,"дд ММММ ГГГГ")&" г." -> Приложение № 1 к Договору № об оказании платных медицинских услуг физическим лицам от 15 Май 2023 г.
A83: Согласие на обработку персональных данных
B84: ="Я, нижеподписавшийся "&"," -> Я, нижеподписавшийся , | D84: =$A$15 -> (Законный представитель), именуемый в дальнейшем Заказчик, и действующий в интересах несовершеннолетнего ребенка (пациента)
B85: (ФИО заявителя, полностью)
B86: проживающий по адресу: | D86: =$D$76 -> 0
A87: ="паспорт серии "&A2&" ,номер "&A3&" ,выдан "&A4 -> паспорт серии ,номер ,выдан
D88: (дата выдачи и название выдавшего органа)
A89: (далее по тексту «Пациент»), в соответствии с требованиями статьи 9 Федерального закона от 27.07.2006г. «О персональных данных» №152-ФЗ, статьи 13 Федерального закона РФ от 21.11.2011г. «Об основах охраны здоровья граждан в РФ» №323-ФЗ, подтверждаю свое согласие на обработку ГБУЗРК «Республиканская детская клиническая больница», юридический адрес: Республика Крым, 295034, город Симферополь, ул. Титова, д. № 71, стр. 1, (далее — Оператор), моих персональных данных, включающих фамилию, имя, отчество, пол, дату рождения, адрес места жительства, реквизиты паспорта (документа удостоверения личности), реквизиты полиса ОМС/ДМС, страховой номер индивидуального лицевого счета в Пенсионном фонде России (СНИЛС), информацию о факте обращения за медицинской помощью, данные о состоянии моего здоровья, диагнозах, заболеваниях, случаях обращения за медицинской помощью в медико-профилактических целях, в целях установления медицинского диагноза и оказания медицинских услуг, и иная информация, полученная при моем обследовании и лечении (далее –«персональные данные») при условии, что обработка данных осуществляется лицом, профессионально занимающимся медицинской деятельностью, обязанным сохранять врачебную тайну. В процессе оказания Оператором мне медицинской помощи я, в интересах обследования и лечения, предоставляю право медицинским работникам Оператора передавать мои персональные данные, должностным лицам Оператора, осуществляющим обработку персональных данных в силу своих должностных обязанностей, медицинским работникам медицинских организаций, с которыми Оператором заключен договор на оказание платных медицинских услуг, в рамках которого мне оказывается медицинская помощь. В процессе оказания Оператором мне медицинской помощи в рамках договоров на оказание платных медицинских услуг (далее –договор), заключенных Оператором с юридическими и физическими лицами, сведения о которых указываются в приложении к настоящему согласию, (далее – Заказчик), я, в интересах обследования и лечения, предоставляю право работникам Оператора в течение срока оказания мне медицинских услуг (срок прикрепления) по договору передавать мои персональные данные Заказчику, в том числе, включающие в себя информацию о состоянии моего здоровья, диагнозе, заболеваниях, с целью учета и отчётности по договору, а также с целью осуществления Заказчиком контроля качества объемов и сроков оказания медицинской помощи по договору, с целью сообщения информации о наличии у меня заболевания, исключающего медицинское обслуживание по программам добровольного медицинского страхования (для договора, заключённого со страховой компанией), с целью предоставления Заказчику результатов проведения медицинского осмотра(профилактического, периодического, предварительного), в том числе предоставлять уполномоченным сотрудникам Заказчика на обозрение медицинскую документацию (медицинскую карту) (ее копии) в полном объеме. Предоставляю Оператору право осуществлять любое действие (операция) или совокупность действий (операций), совершаемых с использованием средств автоматизации или без использования таких средств с моими персональными данными, включая сбор, запись, систематизацию, накопление, хранение, уточнение (обновление, изменение), извлечение, использование, передачу (распространение, предоставление, доступ), обезличивание, блокирование, удаление, уничтожение персональных данных. Оператор вправе обрабатывать мои персональные данные посредством внесения их в электронную базу данных, включения в списки (реестры) и отчетные формы, предусмотренные документами, регламентирующими предоставление отчетных данных (документов) по договорам, а также путем передачи персональных данных (в том числе информацию, содержащую сведения о врачебной тайне), по телефону на номер, указанный Заказчиком, с целью согласования оказания мне медицинских услуг в случаях, предусмотренных договором (в случае если медицинские услуги оказываются в рамках такого договора). Срок хранения моих персональных данных соответствует сроку хранения медицинских документов (в т.ч. медицинской карты) и составляет не менее 25 (двадцать пять) лет. Передача моих персональных данных иным лицам или иное их разглашение может осуществляться только с моего письменного согласия, если иное не предусмотрено законодательством Российской Федерации. Настоящее согласие дано мной с момента подписания и действует бессрочно. Я оставляю за собой право отозвать настоящее согласие посредством составления соответствующего письменного документа, который может быть направлен мной в адрес Оператора по почте заказным письмом с уведомлением о вручении либо вручен лично под расписку представителю Оператора. В случае получения моего письменного заявления об отзыве настоящего согласия на обработку персональных данных Оператор обязан: • прекратить их обработку по истечению периода времени, необходимого для завершения взаиморасчетов по оплате оказанных мне до этого медицинских услуг; • по истечении указанного выше срока хранения моих персональных данных (двадцать пять лет) уничтожить (стереть) все мои персональные данные, в том числе из баз данных автоматизированной информационной системы Оператора, включая все копии на машинных носителях информации, без уведомления меня об этом. Настоящим подтверждаю свое согласие на обработку Оператором моего контактного телефона, адреса электронной почты и почтового адреса, с целью информирования меня о предстоящем посещении врача, сроках оказания услуг, предоставления иных, связанных с исполнением договора на оказание медицинских услуг, сведений, в том числе результатов медицинского исследования, анализов, иную медицинскую документацию, путем предоставления соответствующей информации с помощью электронной почты, смс-информирования, почтовой рассылки (я уведомлен, что информация будет направлена по незащищенным каналам связи, в связи с чем, Оператор не может нести ответственность за несанкционированное попадание сведений к третьим лицам).
A92: ="Контактные телефоны: дом. "&A5&" , моб. "&A6 -> Контактные телефоны: дом. , моб.
A93: ="Адрес электронной почты: "&A7 -> Адрес электронной почты:
A94: =$A$15 -> (Законный представитель), именуемый в дальнейшем Заказчик, и действующий в интересах несовершеннолетнего ребенка (пациента)
A95: (ФИО заявителя) | F95: (подпись)
A96: ="Дата "&TEXT($A$1,"дд.МММ.ГГГГ")&" г." -> Дата 15.май.2023 г.

Sheet ПРАЙС
B1: 20.04 2019
A2: Общий анализ крови на геманализаторе | B2: B03.016.002 | C2: 337 | D2: 1 | E2: =VLOOKUP(A2,A2:D439,3,0) -> 337
A3: Тромбоциты | B3: А08.05.03 | C3: 477 | D3: 1 | E3: 477
A4: Адгезия тромбоцитов | B4: А12.05.054 | C4: 779 | D4: 1 | E4: 779
A5: Ретикулоциты | B5: А 08.05.008 | C5: 326 | D5: 1 | E5: 326
A6: Длительность кровотечения | B6: A12.05.015 | C6: 149 | D6: 1 | E6: 149
A7: Свертываемость | B7: А12.05.015 | C7: 176 | D7: 1 | E7: 176
A8: Волчаночные клетки | B8: А12.06.03 | C8: 524 | D8: 1 | E8: 524
A9: Мононуклеоз | B9: А12.06.04 | C9: 172 | D9: 1 | E9: 172
A10: Реакция лейкоцитолиза | C10: 190 | D10: 1 | E10: 190
A11: Осм. Резистентность | B11: А12.05.002 | C11: 1042 | D11: 1 | E11: 1042
A12: СМЖ | B12: А09.23.006 | C12: 409 | D12: 1 | E12: 409
A13: ОАК +СОЭ+формула | B13: B03.016.003 | C13: 518 | D13: 1 | E13: 518
A14: СОЭ | B14: А12.05.001 | C14: 130 | D14: 1 | E14: 130
A15: Исследование крови на малярию | C15: 553 | D15: 1 | E15: 553
A16: Общий анализ мочи | B16: А09.28.050,А09.28.020,А09.28.022,А09.28.024 | C16: 323 | D16: 1 | E16: =VLOOKUP(A16,A16:D452,3,0) -> 323
A17: Ацетон | B17: А09.28.015 - А09.28.015.001 | C17: 98 | D17: 1 | E17: =VLOOKUP(A17,A17:D454,3,0) -> 98
A18: Пр. Зимницкого | C18: 242 | D18: 1 | E18: 242
A19: Пр. Нечипоренко | C19: 420 | D19: 1 | E19: 420
A20: СЭБ | B20: А09.20.005 | C20: 220 | D20: 1 | E20: 220
A21: Кал на я/гл | B21: А09.19.002 | C21: 620 | D21: 1 | E21: 620
A22: Энтеробиоз | B22: А09.19.002 | C22: 195 | D22: 1 | E22: 195
A23: Копроцитограмма | B23: А09,19.004 | C23: 183 | D23: 1 | E23: 183
A24: Простейшие | B24: А09.10.009 | C24: 160 | D24: 1 | E24: 160
A25: Кал на скрытую кровь | B25: А09.18.9.001 | C25: 126 | D25: 1 | E25: 126
A26: Формула | B26: А08.05.006 | C26: 294 | D26: 1 | E26: 294
A27: Мазок на ГН | B27: А 09.20.001 | C27: 229 | D27: 1 | E27: 229
A28: Мазок на А/К | C28: 580 | D28: 1 | E28: 580
A29: Определение уробилина и билирубина в моче | B29: A09.28.031 | C29: 98 | D29: 1 | E29: 98
A30: Определение гемоглобина в моче | B30: А09.28.020 | C30: 104 | D30: 1 | E30: 104
A31: Определение гемосидерина в моче | B31: А09.28.024. | C31: 162 | D31: 1 | E31: 162
A32: Определение концентрации глюкозы в сыворотке (плазме) крови | B32: А09.05.23 | C32: 132 | D32: 4 | E32: 132
A33: Определение концентрации глюкозы в капиллярной крови с депротеинизацией | B33: A09.05.023.003 | C33: 246 | D33: 4 | E33: 246
A34: Определение концентрации общего белка в сыворотке (плазме) крови | B34: А09.05.010 | C34: 131 | D34: 4 | E34: 131
A35: Определение концентрации альбумина в сыворотке (плазме) крови | B35: А09.05.011 | C35: 132 | D35: 4 | E35: 132
A36: Определение концентрации мочевины в сыворотке (плазме) крови | B36: А09.05.17 | C36: 159 | D36: 4 | E36: 159
A37: Определение концентрации креатинина в сыворотке (плазме) крови | B37: А09.05.19 | C37: 132 | D37: 4 | E37: 132
A38: Определение концентрации общего холестерина в сыворотке (плазме) крови | B38: А09.05.26 | C38: 134 | D38: 4 | E38: 134
A39: Определение концентрации билирубина и его фракций в сыворотке (плазме) крови | B39: А09.05.21 | C39: 226 | D39: 4 | E39: 226
A40: Определение концентрации тимоловой пробы в сыворотке (плазме) крови | B40: А09.05.104 | C40: 164 | D40: 4 | E40: 164
A41: Определение активности АлАТ (АЛТ, аланинаминотрансферазы) в сыворотке (плазме) крови | B41: А09.05.42 | C41: 182 | D41: 4 | E41: 182
A42: Определение активности АсАТ (АСТ,аспартатаминотрансферазы) в сыворотке (плазме) крови | B42: А09.05.41 | C42: 182 | D42: 4 | E42: 182
A43: Определение активности щелочной фосфатазы в сыворотке (плазме) крови | B43: А09.05.46 | C43: 182 | D43: 4 | E43: 182
A44: Определение активности α-амилазы (альфа-амилазы) в сыворотке (плазме) крови | B44: А09.05.45 | C44: 199 | D44: 4 | E44: 199
A45: Определение активности ГГТ (гамма-глутамилтрансферазы,гамма-глутамилтранспептидазы) в сыворотке (плазме) крови | B45: А09.05.044.001 | C45: 209 | D45: 4 | E45: 209
A46: Определение активности ЛДГ (лактатдегидрогеназы) в сыворотке (плазме) крови | B46: А09.05.039 | C46: 210 | D46: 4 | E46: 210
A47: Определение триглицеридов в сыворотке крови | B47: A09.05.025 | C47: 186 | D47: 4 | E47: 186
A48: Определение активности креатинкиназы в сыворотке крови | B48: A09.05.043 | C48: 195 | D48: 4 | E48: 195
A49: Определение концентрации β-липопротеидов (бета-липопротеидов) в сыворотке крови | B49: А09.05.027 | C49: 287 | D49: 4 | E49: =VLOOKUP(A49,A49:D486,3,0) -> 287
A50: Определение концентрации магния в сыворотке (плазме) крови | B50: А09.05.127 | C50: 159 | D50: 4 | E50: 159
A51: Определение концентрации калия в сыворотке (плазме) крови | B51: А09.05.031 | C51: 138 | D51: 4 | E51: 138
A52: Определение концентрации натрия в сыворотке крови | B52: А09.050.30 | C52: 71 | D52: 4 | E52: 71
A53: Определение концентрации хлоридов в сыворотке (плазме) крови | B53: А09.05.034 | C53: 138 | D53: 4 | E53: 138
A54: Определение концентрации кальция в сыворотке (плазме) крови | B54: А09.05.032 | C54: 108 | D54: 4 | E54: 108
A55: Определение концентрации неорганического фосфора в сыворотке крови | B55: А09.05.033 | C55: 157 | D55: 4 | E55: 157
A56: Определение концентрации железа и ОЖСС (общей железосвязывающей способности сыворотки) в сыворотке (плазме) крови | B56: А09.05.007 | C56: 408 | D56: 4 | E56: 408
A57: Латексный тест для определения С-реактивного белка (СРБ) в сыворотке крови | B57: A09.05.009.003 | C57: 321 | D57: 4 | E57: 321
A58: Определение концентрации С-реактивного белка (СРБ) в сыворотке крови | B58: А09.05.009 | C58: 175 | D58: 4 | E58: 175
A59: Определение концентрации ревматоидного фактора в сыворотке крови | B59: A12.06.019 | C59: 486 | D59: 4 | E59: 486
A60: Определение концентрации антистрептолизина-О в сыворотке крови | B60: A12.06.015 | C60: 471 | D60: 4 | E60: 471
A61: Определение концентрации мочевой кислоты в сыворотке (плазме) крови | B61: А09.05.018 | C61: 220 | D61: 4 | E61: 220
A62: Определение концентрации гликированного гемоглобина( НbА1С) цельной крови | B62: А09.05.083 | C62: 263 | D62: 4 | E62: 263
A63: Определение концентрации микроальбумина в суточной моче | B63: А09.28003.001 | C63: 269 | D63: 4 | E63: 269
A64: Определение концентрации кальция в суточной моче | B64: А09.28.012 | C64: 272 | D64: 4 | E64: 272
A65: Определение концентрации неорганического фосфора в суточной моче | B65: А09.28.026 | C65: 275 | D65: 4 | E65: 275
A66: Определение концентрации мочевой кислоты в суточной моче | B66: A09.28.010 | C66: 264 | D66: 4 | E66: 264
A67: Определение диастазы мочи (определение активности альфа-амилазы в моче) | B67: А09.28.027 | C67: 245 | D67: 4 | E67: 245
A68: Определение концентрации креатинина в моче | B68: A09.28.006.001 | C68: 262 | D68: 4 | E68: 262
A69: Определение концентрации общего белка в спинномозговой жидкости (СМЖ) | B69: А09.223.004 | C69: 304 | D69: 4 | E69: 304
A70: Определение концентрации глюкозы в спинномозговой жидкости (СМЖ) | B70: А09.23.003 | C70: 221 | D70: 4 | E70: 221
A71: Определение концентрации хлоридов в спинномозговой жидкости (СМЖ) | B71: А09.23.012 | C71: 274 | D71: 4 | E71: 274
A72: Исследование крови на сифилис (определение суммарных антител G, M, A к T.pallidum)в сыворотке крови | B72: A26.06.082.002 | C72: 520 | D72: 3 | E72: =VLOOKUP(A72,A72:D517,3,0) -> 520
A73: Гепатит В (австралийский антиген / HBsAg) в сыворотке крови | B73: A26.06.036 | C73: 602 | D73: 3 | E73: 602
A74: Гепатит С (суммарные антитела анти-ВГС / anti-HCV) в сыворотке крови | B74: A26.06.041 | C74: 516 | D74: 3 | E74: 516
A75: Определение антител классов G (IgG) к вирусу простого герпеса (Herpes simplex virus 1, 2) в сыворотке крови | B75: A26.06.045 | C75: 759 | D75: 3 | E75: 759
A76: Определение антител классов M (IgM) к вирусу простого герпеса (Herpes simplex virus 1, 2) в сыворотке крови | B76: A26.06.045 | C76: 751 | D76: 3 | E76: 751
A77: Определение антител классов G (IgG) к цитомегаловирусу в сыворотке крови | B77: A26.06.022 | C77: 788 | D77: 3 | E77: 788
A78: Определение антител классов M (IgM) к цитомегаловирусу в сыворотке крови | B78: A26.06.022 | C78: 746 | D78: 3 | E78: 746
A79: Определение антител G (IgG) к возбудителю токсоплазмоза (Toxoplasma gondii) в сыворотке крови человека | B79: A26.06.081 | C79: 808 | D79: 3 | E79: 808
A80: Определение антител M (IgM) к возбудителю токсоплазмоза (Toxoplasma gondii) в сыворотке крови человека | B80: A26.06.081 | C80: 807 | D80: 3 | E80: 807
A81: Определение тиреотропного гормона (ТТГ) в сыворотке крови человека | B81: A12.06.031 | C81: 447 | D81: 3 | E81: 447
A82: Определение свободного тироксина (Т4 свободный) в сыворотке крови человека | B82: A09.05.063 | C82: 452 | D82: 3 | E82: 452
A83: Определение общего тироксина (Т4 общий) в сыворотке крови человека | B83: A09.05.064 | C83: 503 | D83: 3 | E83: 503
A84: Определение свободного трийодтиронина (Т3 свободный) в сыворотке крови человека | B84: A09.05.062 | C84: 518 | D84: 3 | E84: 518
A85: Определение общего тирийодтиронина (Т3 общий ) в сыворотке крови человека | B85: A09.05.060 | C85: 486 | D85: 3 | E85: 486
A86: Определение аутоантител к тироидной пероксидазе (анти-ТПО) в сыворотке крови человека | B86: A12.06.045 | C86: 574 | D86: 3 | E86: 574
A87: Определение кортизола в сыворотке крови человека | B87: A09.05.135 | C87: 536 | D87: 3 | E87: 536
A88: Определение фолликулостимулирующего гормона (ФСГ) в сыворотке крови человека | B88: A09.05.132 | C88: 557 | D88: 3 | E88: 557
A89: Определение лютеинизируещего гормона (ЛГ) в сыворотке крови человека | B89: A09.05.131 | C89: 504 | D89: 3 | E89: 504
A90: Определение прогестерона в сыворотке крови человека | B90: A09.05.151 | C90: 634 | D90: 3 | E90: 634
A91: Определение пролактина в сыворотке крови человека | B91: A09.05.153 | C91: 602 | D91: 3 | E91: 602
A92: Определение тестостерона в сыворотке крови человека | B92: А09.05.078 | C92: 589 | D92: 3 | E92: 589
A93: Определение эстрадиола в сыворотке крови человека | B93: A09.05.154 | C93: 811 | D93: 3 | E93: 811
A94: Определение антител к вирусу Эпштейна-Барра в сыворотке крови | B94: А26.06.028 | C94: 872 | D94: 3 | E94: 872
A95: Исследование уровня прокальцитонина в сыворотке крови | B95: А09.05.209 | C95: 818 | D95: 3 | E95: 818
A96: Артериально-стимулированный венозный забор крови( забор крови из вены) | B96: A06.12.012.001 | C96: 159 | D96: 2 | E96: 159
A97: Рентгенография дорсального отдела позвоночника | B97: A06.03.013 | C97: 832 | D97: 5 | E97: 832
A98: Рентгенография дорсолюмбального отдела позвоночника | B98: A06.03.014 | C98: 832 | D98: 5 | E98: 832
A99: Рентгенография поясничного отдела позвоночника | B99: A06.03.015 | C99: 832 | D99: 5 | E99: 832
A100: Рентгенография одного отдела позвоночника | C100: 832 | D100: 5 | E100: 832
A101: Рентгенография крестца и копчика | B101: A06.03.017 | C101: 832 | D101: 5 | E101: 832
A102: Рентгенография позвоночника, специальные исследования и проекции | B102: A06.03.018 | C102: 832 | D102: 5 | E102: 832
A103: Рентгенография всего черепа | B103: A06.03.005 | C103: 678 | D103: 5 | E103: 678
A104: Рентгенография черепа тангенциальная | B104: A06.03.001 | C104: 678 | D104: 5 | E104: =VLOOKUP(A104,A104:D549,3,0) -> 678
A105: Рентгенография первого и второго шейного позвонка | B105: A06.03.007 | C105: 678 | D105: 5 | E105: 678
A106: Рентгенография зубовидного отростка (второго шейного позвонка) | B106: A06.03.009 | C106: 678 | D106: 5 | E106: 678
A107: Рентгенография шейного отдела позвоночника | B107: A06.03.010 | C107: 678 | D107: 5 | E107: 678
A108: Рентгенография шейно-дорсального отдела позвоночника | B108: A06.03.011 | C108: 678 | D108: 5 | E108: 678
A109: Рентгенография верхней конечности | B109: A06.03.021 | C109: 678 | D109: 5 | E109: 678
A110: Рентгенография ключицы | B110: A06.03.022 | C110: 678 | D110: 5 | E110: 678
A111: Рентгенография ребра(ер) | B111: A06.03.023 | C111: 678 | D111: 5 | E111: 678
A112: Рентгенография грудины | B112: A06.03.024 | C112: 678 | D112: 5 | E112: 678
A113: Рентгенография плеча | B113: A06.03.025 | C113: 678 | D113: 5 | E113: 678
A114: Рентгенография лопатки | B114: A06.03.026 | C114: 678 | D114: 5 | E114: 678
A115: Рентгенография головки плечевой кости | B115: A06.03.027 | C115: 678 | D115: 5 | E115: 678
A116: Рентгенография плечевой кости | B116: A06.03.028 | C116: 678 | D116: 5 | E116: 678
A117: Рентгенография локтевой кости и лучевой кости | B117: A06.03.029 | C117: 678 | D117: 5 | E117: 678
A118: Рентгенография нижней конечности | B118: A06.03.036 | C118: 678 | D118: 5 | E118: 678
A119: Рентгенография подвздошной кости | B119: A06.03.037 | C119: 678 | D119: 5 | E119: 678
A120: Рентгенография седалищной кости | B120: A06.03.038 | C120: 678 | D120: 5 | E120: 678
A121: Рентгенография лонного сочленения | B121: A06.03.040 | C121: 678 | D121: 5 | E121: 678
A122: Рентгенография всего таза | B122: A06.03.041 | C122: 678 | D122: 5 | E122: 678
A123: Рентгенография головки и шейки бедренной кости | B123: A06.03.042 | C123: 678 | D123: 5 | E123: 678
A124: Рентгенография бедренной кости | B124: A06.03.043 | C124: 678 | D124: 5 | E124: 678
A125: Рентгенография диафиза бедренной кости | B125: A06.03.044 | C125: 678 | D125: 5 | E125: 678
A126: Рентгенография коленной чашечки | B126: A06.03.045 | C126: 678 | D126: 5 | E126: 678
A127: Рентгенография большой берцовой и малой берцовой костей | B127: A06.03.046 | C127: 678 | D127: 5 | E127: 678
A128: Рентгенография диафиза большой берцовой и малой берцовой костей | B128: A06.03.047 | C128: 678 | D128: 5 | E128: 678
A129: Рентгенография лодыжки | B129: A06.03.048 | C129: 678 | D129: 5 | E129: 678
A130: Рентгенография костей лицевого скелета | B130: A06.03.056 | C130: 678 | D130: 5 | E130: 678
A131: Рентгенография черепа в прямой проекции | B131: A06.03.060 | C131: 678 | D131: 5 | E131: 678
A132: Рентгенография межпозвоночных сочленений | B132: A06.04.002 | C132: 678 | D132: 5 | E132: 678
A133: Рентгенография локтевого сустава | B133: A06.04.003 | C133: 678 | D133: 5 | E133: 678
A134: Рентгенография лучезапястного сустава | B134: A06.04.004 | C134: 678 | D134: 5 | E134: 678
A135: Рентгенография коленного сустава | B135: A06.04.005 | C135: 678 | D135: 5 | E135: 678
A136: Рентгенография плечевого сустава | B136: A06.04.010 | C136: 678 | D136: 5 | E136: =VLOOKUP(A136,A136:D581,3,0) -> 678
A137: Рентгенография бедренного сустава | B137: A06.04.011 | C137: 678 | D137: 5 | E137: 678
A138: Рентгенография голеностопного сустава | B138: A06.04.012 | C138: 678 | D138: 5 | E138: 678
A139: Рентгенография акромиально-ключичного сустава | B139: A06.04.013 | C139: 678 | D139: 5 | E139: 678
A140: Рентгенография грудино-ключичного сочленения | B140: A06.04.014 | C140: 678 | D140: 5 | E140: 678
A141: Прицельная рентгенография органов грудной клетки | B141: A06.09.007.001 | C141: 678 | D141: 5 | E141: 678
A142: Рентгенография легких | B142: A06.09.007.002 | C142: 678 | D142: 5 | E142: 678
A143: Рентгенография желудочно-кишечная | B143: A06.16.009 | C143: 678 | D143: 5 | E143: 678
A144: Рентгенография средней части брюшной полости | B144: A06.17.001 | C144: 678 | D144: 5 | E144: 678
A145: Рентгеноконтроль прохождения контраста по желудку, тонкой и ободочной кишке | B145: A06.17.002 | C145: 678 | D145: 5 | E145: 678
A146: Рентгеноконтроль прохождения контраста по толстому кишечнику | B146: A06.18.002 | C146: 678 | D146: 5 | E146: 678
A147: Рентгенография нижней части брюшной полости | B147: A06.19.001 | C147: 678 | D147: 5 | E147: 678
A148: Обзорный снимок брюшной полости и органов малого таза | B148: A06.30.004 | C148: 678 | D148: 5 | E148: 678
A149: Рентгенография запястья | B149: A06.03.030 | C149: 495 | D149: 5 | E149: 495
A150: Рентгенография пясти | B150: A06.03.031 | C150: 495 | D150: 5 | E150: 495
A151: Рентгенография кисти руки | B151: A06.03.032 | C151: 495 | D151: 5 | E151: 495
A152: Рентгенография фаланг кисти | B152: A06.03.033 | C152: 495 | D152: 5 | E152: 495
A153: Рентгенография пальцев руки | B153: A06.03.034 | C153: 495 | D153: 5 | E153: 495
A154: Рентгенография большого пальца руки | B154: A06.03.035 | C154: 495 | D154: 5 | E154: 495
A155: Рентгенография предплюсны | B155: A06.03.049 | C155: 495 | D155: 5 | E155: 495
A156: Рентгенография пяточной кости | B156: A06.03.050 | C156: 495 | D156: 5 | E156: 495
A157: Рентгенография плюсны и фаланг стопы | B157: A06.03.051 | C157: 495 | D157: 5 | E157: 495
A158: Рентгенография стопы | B158: A06.03.052 | C158: 495 | D158: 5 | E158: 495
A159: Рентгенография пальцев ноги | B159: A06.03.054 | C159: 495 | D159: 5 | E159: 495
A160: Рентгенография большого пальца стопы | B160: A06.03.055 | C160: 495 | D160: 5 | E160: 495
A161: Рентгенография дорсального отдела позвоночника 2 проекции | B161: A06.03.013 | C161: 1042 | D161: 6 | E161: 1042
A162: Рентгенография дорсолюмбального отдела позвоночника 2 проекции | B162: A06.03.014 | C162: 1042 | D162: 6 | E162: 1042
A163: Рентгенография поясничного отдела позвоночника 2 проекции | B163: A06.03.015 | C163: 1042 | D163: 6 | E163: 1042
A164: Рентгенография одного отдела позвоночника 2 проекции | C164: 1042 | D164: 6 | E164: 1042
A165: Рентгенография крестца и копчика 2 проекции | B165: A06.03.017 | C165: 1042 | D165: 6 | E165: 1042
A166: Рентгенография позвоночника, специальные исследования и проекции 2 проекции | B166: A06.03.018 | C166: 1042 | D166: 6 | E166: 1042
A167: Рентгенография всего черепа 2 проекции | B167: A06.03.005 | C167: 888 | D167: 6 | E167: 888
A168: Рентгенография черепа тангенциальная 2 проекции | B168: A06.03.001 | C168: 888 | D168: 6 | E168: =VLOOKUP(A168,A168:D613,3,0) -> 888
A169: Рентгенография первого и второго шейного позвонка 2 проекции | B169: A06.03.007 | C169: 888 | D169: 6 | E169: 888
A170: Рентгенография зубовидного отростка (второго шейного позвонка) 2 проекции | B170: A06.03.009 | C170: 888 | D170: 6 | E170: 888
A171: Рентгенография шейного отдела позвоночника 2 проекции | B171: A06.03.010 | C171: 888 | D171: 6 | E171: 888
A172: Рентгенография шейно-дорсального отдела позвоночника 2 проекции | B172: A06.03.011 | C172: 888 | D172: 6 | E172: 888
A173: Рентгенография верхней конечности 2 проекции | B173: A06.03.021 | C173: 888 | D173: 6 | E173: 888
A174: Рентгенография ключицы 2 проекции | B174: A06.03.022 | C174: 888 | D174: 6 | E174: 888
A175: Рентгенография ребра(ер) 2 проекции | B175: A06.03.023 | C175: 888 | D175: 6 | E175: 888
A176: Рентгенография грудины 2 проекции | B176: A06.03.024 | C176: 888 | D176: 6 | E176: 888
A177: Рентгенография плеча 2 проекции | B177: A06.03.025 | C177: 888 | D177: 6 | E177: 888
A178: Рентгенография лопатки 2 проекции | B178: A06.03.026 | C178: 888 | D178: 6 | E178: 888
A179: Рентгенография головки плечевой кости 2 проекции | B179: A06.03.027 | C179: 888 | D179: 6 | E179: 888
A180: Рентгенография плечевой кости 2 проекции | B180: A06.03.028 | C180: 888 | D180: 6 | E180: 888
A181: Рентгенография локтевой кости и лучевой кости 2 проекции | B181: A06.03.029 | C181: 888 | D181: 6 | E181: 888
A182: Рентгенография нижней конечности 2 проекции | B182: A06.03.036 | C182: 888 | D182: 6 | E182: 888
A183: Рентгенография подвздошной кости 2 проекции | B183: A06.03.037 | C183: 888 | D183: 6 | E183: 888
A184: Рентгенография седалищной кости 2 проекции | B184: A06.03.038 | C184: 888 | D184: 6 | E184: 888
A185: Рентгенография лонного сочленения 2 проекции | B185: A06.03.040 | C185: 888 | D185: 6 | E185: 888
A186: Рентгенография всего таза 2 проекции | B186: A06.03.041 | C186: 888 | D186: 6 | E186: 888
A187: Рентгенография головки и шейки бедренной кости 2 проекции | B187: A06.03.042 | C187: 888 | D187: 6 | E187: 888
A188: Рентгенография бедренной кости 2 проекции | B188: A06.03.043 | C188: 888 | D188: 6 | E188: 888
A189: Рентгенография диафиза бедренной кости 2 проекции | B189: A06.03.044 | C189: 888 | D189: 6 | E189: 888
A190: Рентгенография коленной чашечки 2 проекции | B190: A06.03.045 | C190: 888 | D190: 6 | E190: 888
A191: Рентгенография большой берцовой и малой берцовой костей 2 проекции | B191: A06.03.046 | C191: 888 | D191: 6 | E191: 888
A192: Рентгенография диафиза большой берцовой и малой берцовой костей 2 проекции | B192: A06.03.047 | C192: 888 | D192: 6 | E192: 888
A193: Рентгенография лодыжки 2 проекции | B193: A06.03.048 | C193: 888 | D193: 6 | E193: 888
A194: Рентгенография костей лицевого скелета 2 проекции | B194: A06.03.056 | C194: 888 | D194: 6 | E194: 888
A195: Рентгенография черепа в прямой проекции 2 проекции | B195: A06.03.060 | C195: 888 | D195: 6 | E195: 888
A196: Рентгенография межпозвоночных сочленений 2 проекции | B196: A06.04.002 | C196: 888 | D196: 6 | E196: 888
A197: Рентгенография локтевого сустава 2 проекции | B197: A06.04.003 | C197: 888 | D197: 6 | E197: 888
A198: Рентгенография лучезапястного сустава 2 проекции | B198: A06.04.004 | C198: 888 | D198: 6 | E198: 888
A199: Рентгенография коленного сустава 2 проекции | B199: A06.04.005 | C199: 888 | D199: 6 | E199: 888
A200: Рентгенография плечевого сустава 2 проекции | B200: A06.04.010 | C200: 888 | D200: 6 | E200: =VLOOKUP(A200,A200:D645,3,0) -> 888
... 260 more rows

Sheet Сертиф
A1: ФИО | B1: Отдел | C1: Категор | D1: Сертификат
A2: Янина Татьяна Юрьевна | B2: Функциональная диагностика | D2: ФГБО УВО «Кубанский государственный медицинский университет МЗ РФ «Функциональная диагностика» 0123310108083 от 04.05.2017
A3: Краснова Виктория Валерьевна | B3: Функциональная диагностика | C3: высшая категория от 27.02.2013 | D3: ФГБУ ДПО "Центральная медицинская академия "Управление по делам РФ 0377180766879 от 04.12.2017года
A4: Скороходова Виктория Игоревна | B4: Эндоскопия | C4: высшая от 31.05.2016\ | D4: КГМУ им. Георгевского –«Эндоскопия» Серия 0182140001708 №18/550 от 08.04.2015
A5: Дмитрюк Светлана Викторовна | B5: Рентгенология | C5: высшая от 11.11.2010 | D5: КГМУ им. Георгевского «Рентгенология» Серия 0182180442149 №07/2009 от 29.06.2015
A6: Лукьянец Лидия Владимировна | B6: Клиническая лабораторная диагностика | C6: высшая от 21.12.2015 | D6: ГБОУ ВПО «Северо-Западный ГМУ им. Мечникова» Серия 0178040003520 №36235 от 20.12.2014
A7: Шевченко Людмила Михайловна | B7: Физиотерапия | C7: высшая от 01.06.2011 | D7: КГМУ им. Георгевского «Физиотерапия» Серия 0182140001907 № 20/750 от 09.04.2015
A8: Тукина Анна Михайловна | B8: Нефрология | C8: высшая 22.02.2012 | D8: Московская ордена Ленина и Трудового Красного Знамени медицинская академия им. И.М. Сеченова Серия017704№0014180 от 30.12.2014
A9: Балич Айше Якубовна | B9: Стоматология хирургическая | C9: высшая категория от 18.12.2009 | D9: Стоматология хирургическая» Московская медицинская академия им. И.М. Сеченова Федерального агентства по здравоохранению и социальному развитию г. Москва №0377240831615 от 13.12.2015
A10: Олейник Анатолий Васильевич | B10: Травматология и ортопедия | C10: высшая категория от 30.07.2012 | D10: 1. «Травматология и ортопедия» Московский государственный институт усовершенствования врачей №0377180375980 от 16.16.2015 2. «Организация здравоохранения и общественное здоровье» Московская ордена Ленина и ордена Трудового Красного Знамени медицинская академия им. И.М. Сеченова №0177240119189 от 09.06.2015
A11: Абросимова Елена Ивановна | B11: Неонатология | C11: высшая от 20.12.2015 | D11: Неонатология» ФГУ «Научно-исследовательский институт кардиологии им. В.А. Алмазова Серия 0278180135929 №908 от 01.12.2014
A12: Тарасова Лариса Анатольевна | B12: Акушерство и гинекология | C12: высшая категория от 14.05.2014 | D12: 1. «Акушерство и гинекология» КГМУ им. С.И. Георгевского серия 0182140000881 №01/1712 от 28.05.2015 2. «Ультразвуковая диагностика» Челябинский ГМИ № 1174180413043 от 24.09.2015
A13: Кошевая Людмила Павловна | B13: Гастроэнтерология | C13: первая категория от 31.10.2012 | D13: ФГАОУ ВО "Крымский федеральный университет им.В.И.Вернадского" 0182180607482 от 21.11.2017 года
A14: Калинина Лариса Анатольевна | B14: Дерматовенерология | C14: высшая категория от 30.036.2016 | D14: «Дерматовенерология» ГБОУ ДПО «Российская медицинская академия последипломного образования» МЗ РФ Серия 0377060103467 №2Ц-15-101237 от 17.03.2015
A15: Ветрова Вера Владимировна | B15: Педиатрия | C15: вторая категория от 23.05.2012 | D15: «Гастроэнтерология» КФУ им. Вернадцкого МА им. Георгевского Серия 0182180443191 №18/2878 от 17.11.15
A16: Завгородняя Светлана Брониславовна | B16: Биолог | C16: Первая от 21.12.2015
A17: Симонян Мария Сергеевна | B17: Оториноларингология | D17: Российский национальный исследовательский медицинский университет им. Н.И. Пирогова серия 0177240442660 №5071 от 27.03.2015
A18: Самисова Наталья Ивановна | B18: Пульмонология | C18: Высшая от 05.10.2011 | D18: КГМУ им . Георгевского «Пульмонология» серия 0182180441969 №18/1829 от 09.06.2015
A19: Требушенко Светлана Юрьевна | B19: Гематология | D19: Российская медицинская академия Последипломного образования МЗ РФ «Гематология» серия 0377060171281 №2Ц-7-114438 от 22.11.2015
A20: Ковальчук Алексей Владимирович | B20: Стоматология хирургическая | D20: КГМУ им. С.И. Георгевского «Стоматология хирургическая» серия 0182180442815 №16.2504 от 05.10.15
A21: Синцова Ирина Васильевна | B21: Аллергология и иммунология | C21: высшая от 22.04.2014 | D21: «Аллергология и иммунология» Российская медицинская академия Последипломного образования МЗ РФ серия 0377060164685 №2Ц-2-107517 от 05.06.2015 «Пульмонология» ГБОУ ДПО «Российская медицинская академия Последипломного образования МЗ РФ» серия 0182180441970 №18/1830 от 09.06.2015
A22: Блажко Татьяна Григорьевна | B22: Детская кардиология | C22: первая от 13.03.2013 | D22: Медицинская академия им. Георгевского серия 01820180606396 №13/966 от 02.06.2016
A23: Бунчук Марина Михайловна | B23: Неврология | D23: КГМУ им. Георгевского серия 0182140001326 №08/1185 от 14.04.2015
A24: Онищенко Зоя Владимировна | B24: Офтальмология | D24: КГМУ им. Георгевского «Офтальмология» серия 0182140000963 №11/1792 от 02.06.2015
A25: Муединова Эльвира Разимовна | B25: Неврология | D25: ФГБОУ ВО "Санкт-петербурский государственный педиатрический медицинскийуниверситет МЗ РФ 0178270049699 от 15.10.2016
A26: Новакова Владислава Владимировна | B26: Оториноларингология | D26: 2й Московский ордена Ленина Государственный медицинский институт им. Н.И. Пирогова «Оториноларингология» серия 0177240442657 №5068 от 27.03.2014 Российский национальный медицинский университет им. Н.И.Пирогова «Оториноларингология» серия 0177240443246 №5068 от 27.03.2015
A27: Турчанинова Людмила Ивановна | B27: Детская эндокринология | D27: Федеральный центр сердца, крови и эндокринологии им. В.А. Алмазова Федерального агентства по высокотехнологичной медицинской помощи г. Санкт-Петербург серия 0278180135656 №635 от 02.08.2014
A28: Кушнерюк Светлана Ярославовна | B28: Офтальмология | D28: «Офтальмология» КГМУ им. С.И. Георгевского серия 0182180442921 №11/2609 от 28.10.2015
A29: Кушнир Елена Федоровна | B29: Аллергология и иммунология | D29: ГБОУ ДПО «Российская медицинская академия последипломного образования МЗ РФ» «Аллергология и иммунология» серия 0377060167209 №2Ц-2-109976 от 05.07.2015
A30: Сердюк Светлана Александровна | B30: Травматология и ортопедия | D30: Институт последипломного профессионального образования ФМБЦ им. А.И. Бурназяна серия 0377180151481 №1973/15 от 27.04.2015
A31: Никифоров Константин Евгеньевич | B31: Сурдология-оториноларингология | D31: Российская академия последипломного образования МЗ РФ «Сурдология-оториноларингология» №0377060182105 от 10.10.2015
A32: Каретникова Марина Сергеевна | B32: Ультразвуковая диагностика | D32: Российская медицинская академия Последипломного образования (ультразвуковая диагностика) № 0377060179388 от 04.05.2016
A33: Бабенко Татьяна Владимировна | B33: Детская урология-андрология, детская хирургия | D33: Российская медицинская академия непрерывного профессионального обучения "Детская хирургия" от 05.03.2018 №0377180733037; Российская медицинская академия последипломного образования "Детская урология - андрология" от 12.10.2015 № 0377060182525
A34: Пейливанова Ольга Викторовна | B34: Акушерство и гинекология | D34: Негосударственное образовательное частное учреждение профессионального образования "Высшая медицинская школа" № 1177240786524 04.12.2015
A35: Сысоева Наталья Александровна | B35: Педиатрия | D35: «Педиатрия» «КФУ» 0182180607012 от 30.11.2016
A36: Верменич Ксения Валериевна | B36: Детская хирургия | D36: ФГАОУ ВО"КФУ им. В.И. Вернадского" 0182180507077 от 29.08.2016 года
A37: Жогова Ольга Валерьевна | B37: «Ревматология » | D37: Первый Московский ГМУ им. И.М. Сеченова № 0177040049406 от 12.05.2016 «Ревматология»
A38: Гожик Алина Игоревна | B38: «Гастроэнтерология» | D38: университет им. В.И. Вернадского» Медицинской академии С.И. Георгиевского; сертификат 018210607688 №18/877 от 26.12.2017
A39: Ивановский Сергей Владимирович | B39: «Ревматология» | D39: Первый Московский ГМУ им. И.М. Сеченова № 0177040029495 от 12.05.2015 «Ревматология»

Sheet Лист2

Sheet shHelp
A1: Удобный поиск в выпадающем списке . Данная надстройка предоставляет возможность вставлять значения из списков в текущую ячейку листа. Запуск надстройки производится несколькими способами: 1) Сочетанием клавиш CTRL+SHIFT+R 2) ДаблКликом (можно отключить в настройках) 3) Нажатием на строку меню "Поиск в выпадающем списке", находящейся на вкладке "Сервис" в 2003 Excel и на вкладке "Надстройки" в 2007. Форма надстройки открывается не модально, поэтому для того что бы изменить результирующую ячейку форму можно не закрывать. Для поиска значения из списка необходимо ввести часть слова для поиска. В результирующую ячейку вставляется выбранное значение из найденных вариантов. Вставка значения в ячейку происходит при нажатии на кнопку "Вставить в ячейку", или по ЕНТЕР или по двойному щелчку мыши. Для выбора параметров работы надстройки, а также для управления списками воспользуйтесь кнопкой "Настройки". Версия: 12.1 Автор: GIG_ant Январь 2012 г.

Sheet shLists (hidden)
A1: ПРАЙС | B1: Специалист
A2: Общий анализ крови на геманализаторе | B2: Янина Татьяна Юрьевна
A3: Тромбоциты | B3: Краснова Виктория Валерьевна
A4: Адгезия тромбоцитов | B4: Скороходова Виктория Игоревна
A5: Ретикулоциты | B5: Дмитрюк Светлана Викторовна
A6: Длительность кровотечения | B6: Лукьянец Лидия Владимировна
A7: Свертываемость | B7: Шевченко Людмила Михайловна
A8: Волчаночные клетки | B8: Тукина Анна Михайловна
A9: Мононуклеоз | B9: Балич Айше Якубовна
A10: Реакция лейкоцитолиза | B10: Олейник Анатолий Васильевич
A11: Осм. Резистентность | B11: Абросимова Елена Ивановна
A12: СМЖ | B12: Тарасова Лариса Анатольевна
A13: ОАК +СОЭ+формула | B13: Кошевая Людмила Павловна
A14: СОЭ | B14: Калинина Лариса Анатольевна
A15: Исследование крови на малярию | B15: Ветрова Вера Владимировна
A16: Общий анализ мочи | B16: Завгородняя Светлана Брониславовна
A17: Ацетон | B17: Симонян Мария Сергеевна
A18: Пр. Зимницкого | B18: Самисова Наталья Ивановна
A19: Пр. Нечипоренко | B19: Требушенко Светлана Юрьевна
A20: СЭБ | B20: Ковальчук Алексей Владимирович
A21: Кал на я/гл | B21: Синцова Ирина Васильевна
A22: Энтеробиоз | B22: Блажко Татьяна Григорьевна
A23: Копроцитограмма | B23: Бунчук Марина Михайловна
A24: Простейшие | B24: Онищенко Зоя Владимировна
A25: Кал на скрытую кровь | B25: Муединова Эльвира Разимовна
A26: Формула | B26: Новакова Владислава Владимировна
A27: Мазок на ГН | B27: Турчанинова Людмила Ивановна
A28: Мазок на А/К | B28: Кушнерюк Светлана Ярославовна
A29: Определение уробилина и билирубина в моче | B29: Кушнир Елена Федоровна
A30: Определение гемоглобина в моче | B30: Сердюк Светлана Александровна
A31: Определение гемосидерина в моче | B31: Никифоров Константин Евгеньевич
A32: Определение концентрации глюкозы в сыворотке (плазме) крови | B32: Каретникова Марина Сергеевна
A33: Определение концентрации глюкозы в капиллярной крови с депротеинизацией | B33: Бабенко Татьяна Владимировна
A34: Определение концентрации общего белка в сыворотке (плазме) крови | B34: Пейливанова Ольга Викторовна
A35: Определение концентрации альбумина в сыворотке (плазме) крови | B35: Сысоева Наталья Александровна
A36: Определение концентрации мочевины в сыворотке (плазме) крови | B36: Верменич Ксения Валериевна
A37: Определение концентрации креатинина в сыворотке (плазме) крови | B37: Жогова Ольга Валерьевна
A38: Определение концентрации общего холестерина в сыворотке (плазме) крови | B38: Гожик Алина Игоревна
A39: Определение концентрации билирубина и его фракций в сыворотке (плазме) крови | B39: Ивановский Сергей Владимирович
A40: Определение концентрации тимоловой пробы в сыворотке (плазме) крови
A41: Определение активности АлАТ (АЛТ, аланинаминотрансферазы) в сыворотке (плазме) крови
A42: Определение активности АсАТ (АСТ,аспартатаминотрансферазы) в сыворотке (плазме) крови
A43: Определение активности щелочной фосфатазы в сыворотке (плазме) крови
A44: Определение активности α-амилазы (альфа-амилазы) в сыворотке (плазме) крови
A45: Определение активности ГГТ (гамма-глутамилтрансферазы,гамма-глутамилтранспептидазы) в сыворотке (плазме) крови
A46: Определение активности ЛДГ (лактатдегидрогеназы) в сыворотке (плазме) крови
A47: Определение триглицеридов в сыворотке крови
A48: Определение активности креатинкиназы в сыворотке крови
A49: Определение концентрации β-липопротеидов (бета-липопротеидов) в сыворотке крови
A50: Определение концентрации магния в сыворотке (плазме) крови
A51: Определение концентрации калия в сыворотке (плазме) крови
A52: Определение концентрации натрия в сыворотке крови
A53: Определение концентрации хлоридов в сыворотке (плазме) крови
A54: Определение концентрации кальция в сыворотке (плазме) крови
A55: Определение концентрации неорганического фосфора в сыворотке крови
A56: Определение концентрации железа и ОЖСС (общей железосвязывающей способности сыворотки) в сыворотке (плазме) крови
A57: Латексный тест для определения С-реактивного белка (СРБ) в сыворотке крови
A58: Определение концентрации С-реактивного белка (СРБ) в сыворотке крови
A59: Определение концентрации ревматоидного фактора в сыворотке крови
A60: Определение концентрации антистрептолизина-О в сыворотке крови
A61: Определение концентрации мочевой кислоты в сыворотке (плазме) крови
A62: Определение концентрации гликированного гемоглобина( НbА1С) цельной крови
A63: Определение концентрации микроальбумина в суточной моче
A64: Определение концентрации кальция в суточной моче
A65: Определение концентрации неорганического фосфора в суточной моче
A66: Определение концентрации мочевой кислоты в суточной моче
A67: Определение диастазы мочи (определение активности альфа-амилазы в моче)
A68: Определение концентрации креатинина в моче
A69: Определение концентрации общего белка в спинномозговой жидкости (СМЖ)
A70: Определение концентрации глюкозы в спинномозговой жидкости (СМЖ)
A71: Определение концентрации хлоридов в спинномозговой жидкости (СМЖ)
A72: Исследование крови на сифилис (определение суммарных антител G, M, A к T.pallidum)в сыворотке крови
A73: Гепатит В (австралийский антиген / HBsAg) в сыворотке крови
A74: Гепатит С (суммарные антитела анти-ВГС / anti-HCV) в сыворотке крови
A75: Определение антител классов G (IgG) к вирусу простого герпеса (Herpes simplex virus 1, 2) в сыворотке крови
A76: Определение антител классов M (IgM) к вирусу простого герпеса (Herpes simplex virus 1, 2) в сыворотке крови
A77: Определение антител классов G (IgG) к цитомегаловирусу в сыворотке крови
A78: Определение антител классов M (IgM) к цитомегаловирусу в сыворотке крови
A79: Определение антител G (IgG) к возбудителю токсоплазмоза (Toxoplasma gondii) в сыворотке крови человека
A80: Определение антител M (IgM) к возбудителю токсоплазмоза (Toxoplasma gondii) в сыворотке крови человека
A81: Определение тиреотропного гормона (ТТГ) в сыворотке крови человека
A82: Определение свободного тироксина (Т4 свободный) в сыворотке крови человека
A83: Определение общего тироксина (Т4 общий) в сыворотке крови человека
A84: Определение свободного трийодтиронина (Т3 свободный) в сыворотке крови человека
A85: Определение общего тирийодтиронина (Т3 общий ) в сыворотке крови человека
A86: Определение аутоантител к тироидной пероксидазе (анти-ТПО) в сыворотке крови человека
A87: Определение кортизола в сыворотке крови человека
A88: Определение фолликулостимулирующего гормона (ФСГ) в сыворотке крови человека
A89: Определение лютеинизируещего гормона (ЛГ) в сыворотке крови человека
A90: Определение прогестерона в сыворотке крови человека
A91: Определение пролактина в сыворотке крови человека
A92: Определение тестостерона в сыворотке крови человека
A93: Определение эстрадиола в сыворотке крови человека
A94: Определение антител к вирусу Эпштейна-Барра в сыворотке крови
A95: Исследование уровня прокальцитонина в сыворотке крови
A96: Артериально-стимулированный венозный забор крови( забор крови из вены)
A97: Рентгенография дорсального отдела позвоночника
A98: Рентгенография дорсолюмбального отдела позвоночника
A99: Рентгенография поясничного отдела позвоночника
A100: Рентгенография одного отдела позвоночника
A101: Рентгенография крестца и копчика
A102: Рентгенография позвоночника, специальные исследования и проекции
A103: Рентгенография всего черепа
A104: Рентгенография черепа тангенциальная
A105: Рентгенография первого и второго шейного позвонка
A106: Рентгенография зубовидного отростка (второго шейного позвонка)
A107: Рентгенография шейного отдела позвоночника
A108: Рентгенография шейно-дорсального отдела позвоночника
A109: Рентгенография верхней конечности
A110: Рентгенография ключицы
A111: Рентгенография ребра(ер)
A112: Рентгенография грудины
A113: Рентгенография плеча
A114: Рентгенография лопатки
A115: Рентгенография головки плечевой кости
A116: Рентгенография плечевой кости
A117: Рентгенография локтевой кости и лучевой кости
A118: Рентгенография нижней конечности
A119: Рентгенография подвздошной кости
A120: Рентгенография седалищной кости
A121: Рентгенография лонного сочленения
A122: Рентгенография всего таза
A123: Рентгенография головки и шейки бедренной кости
A124: Рентгенография бедренной кости
A125: Рентгенография диафиза бедренной кости
A126: Рентгенография коленной чашечки
A127: Рентгенография большой берцовой и малой берцовой костей
A128: Рентгенография диафиза большой берцовой и малой берцовой костей
A129: Рентгенография лодыжки
A130: Рентгенография костей лицевого скелета
A131: Рентгенография черепа в прямой проекции
A132: Рентгенография межпозвоночных сочленений
A133: Рентгенография локтевого сустава
A134: Рентгенография лучезапястного сустава
A135: Рентгенография коленного сустава
A136: Рентгенография плечевого сустава
A137: Рентгенография бедренного сустава
A138: Рентгенография голеностопного сустава
A139: Рентгенография акромиально-ключичного сустава
A140: Рентгенография грудино-ключичного сочленения
A141: Прицельная рентгенография органов грудной клетки
A142: Рентгенография легких
A143: Рентгенография желудочно-кишечная
A144: Рентгенография средней части брюшной полости
A145: Рентгеноконтроль прохождения контраста по желудку, тонкой и ободочной кишке
A146: Рентгеноконтроль прохождения контраста по толстому кишечнику
A147: Рентгенография нижней части брюшной полости
A148: Обзорный снимок брюшной полости и органов малого таза
A149: Рентгенография запястья
A150: Рентгенография пясти
A151: Рентгенография кисти руки
A152: Рентгенография фаланг кисти
A153: Рентгенография пальцев руки
A154: Рентгенография большого пальца руки
A155: Рентгенография предплюсны
A156: Рентгенография пяточной кости
A157: Рентгенография плюсны и фаланг стопы
A158: Рентгенография стопы
A159: Рентгенография пальцев ноги
A160: Рентгенография большого пальца стопы
A161: Рентгенография дорсального отдела позвоночника 2 проекции
A162: Рентгенография дорсолюмбального отдела позвоночника 2 проекции
A163: Рентгенография поясничного отдела позвоночника 2 проекции
A164: Рентгенография одного отдела позвоночника 2 проекции
A165: Рентгенография крестца и копчика 2 проекции
A166: Рентгенография позвоночника, специальные исследования и проекции 2 проекции
A167: Рентгенография всего черепа 2 проекции
A168: Рентгенография черепа тангенциальная 2 проекции
A169: Рентгенография первого и второго шейного позвонка 2 проекции
A170: Рентгенография зубовидного отростка (второго шейного позвонка) 2 проекции
A171: Рентгенография шейного отдела позвоночника 2 проекции
A172: Рентгенография шейно-дорсального отдела позвоночника 2 проекции
A173: Рентгенография верхней конечности 2 проекции
A174: Рентгенография ключицы 2 проекции
A175: Рентгенография ребра(ер) 2 проекции
A176: Рентгенография грудины 2 проекции
A177: Рентгенография плеча 2 проекции
A178: Рентгенография лопатки 2 проекции
A179: Рентгенография головки плечевой кости 2 проекции
A180: Рентгенография плечевой кости 2 проекции
A181: Рентгенография локтевой кости и лучевой кости 2 проекции
A182: Рентгенография нижней конечности 2 проекции
A183: Рентгенография подвздошной кости 2 проекции
A184: Рентгенография седалищной кости 2 проекции
A185: Рентгенография лонного сочленения 2 проекции
A186: Рентгенография всего таза 2 проекции
A187: Рентгенография головки и шейки бедренной кости 2 проекции
A188: Рентгенография бедренной кости 2 проекции
A189: Рентгенография диафиза бедренной кости 2 проекции
A190: Рентгенография коленной чашечки 2 проекции
A191: Рентгенография большой берцовой и малой берцовой костей 2 проекции
A192: Рентгенография диафиза большой берцовой и малой берцовой костей 2 проекции
A193: Рентгенография лодыжки 2 проекции
A194: Рентгенография костей лицевого скелета 2 проекции
A195: Рентгенография черепа в прямой проекции 2 проекции
A196: Рентгенография межпозвоночных сочленений 2 проекции
A197: Рентгенография локтевого сустава 2 проекции
A198: Рентгенография лучезапястного сустава 2 проекции
A199: Рентгенография коленного сустава 2 проекции
A200: Рентгенография плечевого сустава 2 проекции
... 260 more rows

Sheet Tmp_#### (hidden)
